[Event "Romanian-ch Youth Open U10 2024"]
[Site "Eforie Nord"]
[Date "2024.04.13"]
[Round "3.2"]
[White "Bostina, Vladimir-Ioan"]
[Black "Varabiescu, Petru"]
[Result "0-1"]
[ECO "B33"]
[WhiteElo "1579"]
[BlackElo "1791"]
[Annotator "NA RC COMBH"]
[PlyCount "120"]
[EventDate "2024.04.10"]
[EventType "swiss"]
[EventCountry "ROU"]
[SourceTitle "playchess.com"]
[Source "ChessBase"]
[SourceQuality "1"]
[TimeControl "5400+30"]

1. e4 {[%emt 0:00:02]} c5 {[%emt 0:00:03]} 2. Nf3 {[%emt 0:00:07]} Nc6 {[%emt 0:00:09]} 3. d4 {[%emt 0:00:08]} cxd4 {[%emt 0:00:05]} 4. Nxd4 {[%emt 0:00:11]} Nf6 {[%emt 0:00:02]} 5. Nc3 {[%emt 0:00:07]} e5 {[%emt 0:00:06]} 6. Ndb5 {[%emt 0:00:04]} d6 {[%emt 0:00:05]} 7. Bg5 {[%emt 0:00:03]} a6 {[%emt 0:00:06]} 8. Na3 {[%emt 0:00:04]} b5 {[%emt 0:00:06]} 9. Nd5 {[%emt 0:00:06]} Be7 {[%emt 0:00:07]} 10. Bxf6 {[%emt 0:00:05]} Bxf6 {[%emt 0:00:07]} 11. c3 {[%emt 0:00:15]} O-O {[%emt 0:01:00]} 12. Nc2 {[%emt 0:00:12]} Rb8 {[%emt 0:00:53]} 13. Be2 {[%emt 0:01:26]} Bg5 {[%emt 0:01:47]} 14. O-O {[%emt 0:02:07]} Ne7 {[%emt 0:04:58]} 15. Ncb4 {[%emt 0:03:21]} Nxd5 {[%emt 0:00:41]} 16. Nxd5 {[%emt 0:08:38]} Be6 {[%emt 0:08:19]} 17. Bg4 {[%emt 0:09:38]} Qd7 {[%emt 0:04:23]} 18. Bxe6 {[%emt 0:02:03]} fxe6 {[%emt 0:02:08]} 19. Qg4 {[%emt 0:00:27]} Qf7 {[%emt 0:03:36]} 20. Nb4 {[%emt 0:03:14]} Qg6 {[%emt 0:05:18]} 21. h4 {[%emt 0:03:04]} Bd8 {[%emt 0:05:45]} 22. Qxg6 {[%emt 0:00:47]} hxg6 {[%emt 0:00:07]} 23. Nc6 {[%emt 0:00:57]} Rc8 {[%emt 0:00:19]} 24. Nxd8 {[%emt 0:00:18]} Rcxd8 {[%emt 0:00:32]} 25. a4 {[%emt 0:00:52]} Rf4 {[%emt 0:00:42]} 26. axb5 {[%emt 0:00:18]} axb5 {[%emt 0:00:07]} 27. g3 {[%emt 0:01:09]} Rxe4 {[%emt 0:00:14]} 28. Ra5 {[%emt 0:00:16]} b4 {[%emt 0:04:08]} 29. Ra4 {[%emt 0:00:22]} Rb8 {[%emt 0:00:14]} 30. Rfa1 {[%emt 0:02:10]} d5 {[%emt 0:08:58]} 31. Ra8 {[%emt 0:00:57]} Rxa8 {[%emt 0:00:21]} 32. Rxa8+ {[%emt 0:00:38]} Kf7 {[%emt 0:00:06]} 33. f3 {[%emt 0:05:09]} Re1+ {[%emt 0:04:20]} 34. Kf2 {[%emt 0:00:12]} Rb1 {[%emt 0:00:10]} 35. Ra7+ {[%emt 0:00:37]} Kg8 {[%emt 0:02:58]} 36. Ra8+ {[%emt 0:00:15]} Kh7 {[%emt 0:00:12]} 37. Re8 {[%emt 0:04:20]} Rxb2+ {[%emt 0:00:06]} 38. Ke3 {[%emt 0:00:08]} bxc3 {[%emt 0:01:02]} 39. Rxe6 {[%emt 0:00:49]} d4+ {[%emt 0:02:39]} 40. Kd3 {[%emt 0:00:12]} Rd2+ {[%emt 0:00:58]} 41. Ke4 {[%emt 0:00:07]} c2 {[%emt 0:00:59]} 42. Rc6 {[%emt 0:00:07]} d3 {[%emt 0:00:11]} 43. Kxe5 {[%emt 0:01:26]} Re2+ {[%emt 0:00:32]} 44. Kf4 {[%emt 0:00:50]} d2 {[%emt 0:00:06]} 45. Rxc2 {[%emt 0:00:13]} d1=Q {[%emt 0:00:05]} 46. Rxe2 {[%emt 0:00:10]} Qxe2 {[%emt 0:00:05]} 47. g4 {[%emt 0:00:09]} Qh2+ {[%emt 0:00:10]} 48. Ke3 {[%emt 0:00:06]} Qxh4 {[%emt 0:00:05]} 49. g5 {[%emt 0:00:00]} Qxg5+ {[%emt 0:00:12]} 50. f4 {[%emt 0:00:05]} Qg3+ {[%emt 0:00:02]} 51. Ke4 {[%emt 0:00:06]} Kg8 {[%emt 0:00:05]} 52. Ke5 {[%emt 0:00:05]} Kf7 {[%emt 0:00:05]} 53. Ke4 {[%emt 0:00:03]} Ke6 {[%emt 0:00:06]} 54. f5+ {[%emt 0:00:06]} gxf5+ {[%emt 0:00:10]} 55. Kd4 {[%emt 0:00:04]} Kd6 {[%emt 0:00:06]} 56. Kc4 {[%emt 0:00:04]} Qe3 {[%emt 0:00:11]} 57. Kb4 {[%emt 0:00:04]} Qd3 {[%emt 0:00:09]} 58. Ka4 {[%emt 0:00:10]} Qb1 {[%emt 0:00:24]} 59. Ka5 {[%emt 0:00:03]} Kc5 {[%emt 0:00:05]} 60. Ka6 {[%emt 0:00:03]} Qb6# {[%emt 0:00:06]} 0-1

[Event "Romanian-ch Youth Open U10 2024"]
[Site "Eforie Nord"]
[Date "2024.04.13"]
[Round "3.3"]
[White "Larion, Iustin"]
[Black "Suteu, Catalin-Mihai"]
[Result "1-0"]
[ECO "D06"]
[WhiteElo "1743"]
[BlackElo "1528"]
[Annotator "NA RC COMBH"]
[PlyCount "89"]
[EventDate "2024.04.10"]
[EventType "swiss"]
[EventCountry "ROU"]
[SourceTitle "playchess.com"]
[Source "ChessBase"]
[SourceQuality "1"]
[TimeControl "5400+30"]

1. d4 {[%emt 0:00:05]} d5 {[%emt 0:00:12]} 2. c4 {[%emt 0:00:20]} e6 {[%emt 0:00:13]} 3. Nc3 {[%emt 0:00:25]} Nc6 {[%emt 0:01:52]} 4. cxd5 {[%emt 1:31:40]} exd5 {[%emt 0:01:20]} 5. Nf3 {[%emt 0:00:00]} Bf5 {[%emt 1:29:23]} 6. a3 {[%emt 0:00:00]} Nf6 {[%emt 0:00:00]} 7. Bg5 {[%emt 0:00:00]} Be7 {[%emt 0:00:00]} 8. e3 {[%emt 0:00:00]} O-O {[%emt 0:00:00]} 9. Bd3 {[%emt 0:00:00]} Ne4 {[%emt 0:00:00]} 10. Bxe7 {[%emt 0:00:00]} Nxe7 {[%emt 0:00:00]} 11. Qc2 {[%emt 0:00:00]} Nxc3 {[%emt 0:00:00]} 12. Qxc3 {[%emt 0:00:00]} c6 {[%emt 0:00:00]} 13. O-O {[%emt 0:00:00]} Be4 {[%emt 0:00:00]} 14. Qc2 {[%emt 0:00:00]} f5 {[%emt 0:00:00]} 15. Rae1 {[%emt 0:00:00]} Ng6 {[%emt 0:00:00]} 16. Ne5 {[%emt 0:00:00]} Qd6 {[%emt 0:00:00]} 17. f4 {[%emt 0:00:00]} Rac8 {[%emt 0:00:00]} 18. b4 {[%emt 0:00:00]} b6 {[%emt 0:00:00]} 19. Rc1 {[%emt 0:00:00]} a5 {[%emt 0:00:00]} 20. Bxe4 {[%emt 0:00:00]} dxe4 {[%emt 0:00:00]} 21. Qc4+ {[%emt 0:00:00]} Qd5 {[%emt 0:00:00]} 22. Nxc6 {[%emt 0:00:00]} Qxc4 {[%emt 0:00:00]} 23. Rxc4 {[%emt 0:00:00]} axb4 {[%emt 0:00:00]} 24. axb4 {[%emt 0:00:00]} Kf7 {[%emt 0:00:00]} 25. Rfc1 {[%emt 0:00:00]} Ra8 {[%emt 0:00:00]} 26. d5 {[%emt 0:00:00]} Ra3 {[%emt 0:00:00]} 27. R4c3 {[%emt 0:00:00]} Ra2 {[%emt 0:00:00]} 28. Ne5+ {[%emt 0:00:00]} Nxe5 {[%emt 0:00:00]} 29. fxe5 {[%emt 0:00:00]} Rd2 {[%emt 0:00:00]} 30. Rc7+ {[%emt 0:00:00]} Kg8 {[%emt 0:00:00]} 31. Rd7 {[%emt 0:00:00]} Re8 {[%emt 0:00:00]} 32. e6 {[%emt 0:00:00]} h6 {[%emt 0:00:00]} 33. e7 {[%emt 0:00:00]} f4 {[%emt 0:00:00]} 34. Rd8 {[%emt 0:00:00]} Kf7 {[%emt 0:00:00]} 35. d6 {[%emt 0:00:00]} fxe3 {[%emt 0:00:00]} 36. Rxe8 {[%emt 0:00:00]} Rxd6 {[%emt 0:00:00]} 37. Rd8 {[%emt 0:00:00]} Kxe7 {[%emt 0:00:00]} 38. Rxd6 {[%emt 0:00:00]} Kxd6 {[%emt 0:00:00]} 39. Kf1 {[%emt 0:00:00]} Kd5 {[%emt 0:00:00]} 40. Ke2 {[%emt 0:00:00]} Kd4 {[%emt 0:00:00]} 41. b5 {[%emt 0:00:00]} g5 {[%emt 0:00:00]} 42. g4 {[%emt 0:00:00]} Kd5 {[%emt 0:00:00]} 43. Kxe3 {[%emt 0:00:00]} Ke5 {[%emt 0:00:00]} 44. Rd1 {[%emt 0:00:00]} Ke6 {[%emt 0:00:00]} 45. Kxe4 {[%emt 0:20:30]} 1-0

[Event "Romanian-ch Youth Open U10 2024"]
[Site "Eforie Nord"]
[Date "2024.04.13"]
[Round "3.4"]
[White "Pasca, Alexandru-Daniel"]
[Black "Marinca, Matteo-Ioan"]
[Result "1-0"]
[ECO "B22"]
[WhiteElo "1623"]
[BlackElo "1523"]
[Annotator "NA RC COMBH"]
[PlyCount "44"]
[EventDate "2024.04.10"]
[EventType "swiss"]
[EventCountry "ROU"]
[SourceTitle "playchess.com"]
[Source "ChessBase"]
[SourceQuality "1"]
[TimeControl "5400+30"]

1. e4 {[%emt 0:00:02]} c5 {[%emt 0:00:04]} 2. c3 {[%emt 0:00:09]} Nf6 {[%emt 0:00:13]} 3. e5 {[%emt 0:00:23]} Nd5 {[%emt 0:00:05]} 4. d4 {[%emt 0:00:06]} d6 {[%emt 0:01:07]} 5. Nf3 {[%emt 0:01:07]} e6 {[%emt 0:01:36]} 6. Bd3 {[%emt 0:00:54]} Be7 {[%emt 0:00:39]} 7. a3 {[%emt 0:02:50]} a5 {[%emt 0:00:32]} 8. O-O {[%emt 0:00:33]} O-O {[%emt 0:00:25]} 9. Bc2 {[%emt 0:00:18]} Nc6 {[%emt 0:01:15]} 10. Qd3 {[%emt 0:02:41]} g6 {[%emt 0:00:28]} 11. exd6 {[%emt 0:02:33]} Qxd6 {[%emt 0:00:21]} 12. Bh6 {[%emt 0:06:18]} Rd8 {[%emt 0:00:31]} 13. Nbd2 {[%emt 0:03:36]} Bf8 {[%emt 0:06:43]} 14. Ne4 {[%emt 0:01:37]} Qe7 {[%emt 0:00:47]} 15. Bxf8 {[%emt 0:00:50]} Qxf8 {[%emt 0:00:10]} 16. dxc5 {[%emt 0:19:07]} e5 {[%emt 0:03:18]} 17. Nd6 {[%emt 0:02:37]} Nde7 {[%emt 0:04:45]} 18. Qe2 {[%emt 0:01:51]} f6 {[%emt 0:00:38]} 19. Qc4+ {[%emt 0:05:48]} Kg7 {[%emt 0:00:37]} 20. b4 {[%emt 0:01:24]} axb4 {[%emt 0:00:26]} 21. axb4 {[%emt 0:01:59]} Rxa1 {[%emt 0:05:06]} 22. Rxa1 {[%emt 0:00:30]} Bg4 {[%emt 0:02:21]} 1-0

[Event "Romanian-ch Youth Open U10 2024"]
[Site "Eforie Nord"]
[Date "2024.04.14"]
[Round "4.1"]
[White "Larion, Iustin"]
[Black "Kovacs, Balazs"]
[Result "1-0"]
[ECO "D02"]
[WhiteElo "1743"]
[BlackElo "1866"]
[Annotator "NA RC"]
[PlyCount "75"]
[EventDate "2024.04.10"]
[EventType "swiss"]
[EventCountry "ROU"]
[SourceTitle "playchess.com"]
[Source "ChessBase"]
[SourceQuality "1"]
[TimeControl "5400+30"]

1. d4 {[%emt 0:00:08]} Nf6 {[%emt 0:00:10]} 2. Nf3 {[%emt 0:00:12]} g6 {[%emt 0:00:07]} 3. Nbd2 {[%emt 0:00:08]} d5 {[%emt 0:00:11]} 4. e3 {[%emt 0:00:09]} c5 {[%emt 0:02:00]} 5. dxc5 {[%emt 0:00:25]} Nc6 {[%emt 0:01:11]} 6. a3 {[%emt 0:17:01]} Qa5 {[%emt 0:08:38]} 7. c4 {[%emt 0:08:30]} Bg7 {[%emt 0:19:10]} 8. Be2 {[%emt 0:04:55]} dxc4 {[%emt 0:15:20]} 9. Bxc4 {[%emt 0:03:23]} Qxc5 {[%emt 0:00:17]} 10. b4 {[%emt 0:01:30]} Qb6 {[%emt 0:01:42]} 11. Bb2 {[%emt 0:01:13]} O-O {[%emt 0:01:01]} 12. O-O {[%emt 0:00:11]} Rd8 {[%emt 0:06:46]} 13. Qb3 {[%emt 0:01:13]} e6 {[%emt 0:03:15]} 14. Rfd1 {[%emt 0:02:25]} a5 {[%emt 0:01:40]} 15. b5 {[%emt 0:01:56]} a4 {[%emt 0:01:39]} 16. Qc2 {[%emt 0:02:04]} Ne7 {[%emt 0:04:57]} 17. Bd4 {[%emt 0:02:54]} Qc7 {[%emt 0:02:16]} 18. b6 {[%emt 0:05:07]} Qc6 {[%emt 0:02:08]} 19. Qb2 {[%emt 0:05:58]} Ne8 {[%emt 0:03:09]} 20. Bxg7 {[%emt 0:01:37]} Nxg7 {[%emt 0:00:10]} 21. Ne5 {[%emt 0:00:36]} Qd6 {[%emt 0:01:00]} 22. Be2 {[%emt 0:04:12]} Nd5 {[%emt 0:02:31]} 23. Ndc4 {[%emt 0:03:51]} Qe7 {[%emt 0:02:19]} 24. e4 {[%emt 0:01:17]} Nf6 {[%emt 0:02:33]} 25. Rxd8+ {[%emt 0:01:10]} Qxd8 {[%emt 0:00:07]} 26. Rd1 {[%emt 0:00:15]} Qe7 {[%emt 0:00:38]} 27. Qd4 {[%emt 0:00:45]} Ngh5 {[%emt 0:04:34]} 28. Bxh5 {[%emt 0:04:40]} Nxh5 {[%emt 0:02:13]} 29. Qd8+ {[%emt 0:01:45]} Qxd8 {[%emt 0:00:08]} 30. Rxd8+ {[%emt 0:00:08]} Kg7 {[%emt 0:00:04]} 31. Nd6 {[%emt 0:00:46]} Kf6 {[%emt 0:00:50]} 32. Nec4 {[%emt 0:02:29]} Nf4 {[%emt 0:03:21]} 33. Rxc8 {[%emt 0:00:25]} Rxc8 {[%emt 0:02:09]} 34. Nxc8 {[%emt 0:00:09]} Ne2+ {[%emt 0:00:09]} 35. Kf1 {[%emt 0:00:08]} Nc3 {[%emt 0:01:41]} 36. e5+ {[%emt 0:00:13]} Kf5 {[%emt 0:01:19]} 37. N8d6+ {[%emt 0:00:11]} Kf4 {[%emt 0:00:10]} 38. Nxb7 {[%emt 0:25:31]} 1-0

[Event "Romanian-ch Youth Open U10 2024"]
[Site "Eforie Nord"]
[Date "2024.04.14"]
[Round "4.2"]
[White "Varabiescu, Petru"]
[Black "Pasca, Alexandru-Daniel"]
[Result "1-0"]
[ECO "B22"]
[WhiteElo "1791"]
[BlackElo "1623"]
[Annotator "NA RC"]
[PlyCount "151"]
[EventDate "2024.04.10"]
[EventType "swiss"]
[EventCountry "ROU"]
[SourceTitle "playchess.com"]
[Source "ChessBase"]
[SourceQuality "1"]
[TimeControl "5400+30"]

1. e4 {[%emt 0:00:01]} c5 {[%emt 0:00:04]} 2. c3 {[%emt 0:00:05]} Nf6 {[%emt 0:00:03]} 3. e5 {[%emt 0:00:05]} Nd5 {[%emt 0:00:03]} 4. d4 {[%emt 0:00:07]} cxd4 {[%emt 0:00:04]} 5. Nf3 {[%emt 0:00:08]} e6 {[%emt 0:00:09]} 6. cxd4 {[%emt 0:00:05]} Nc6 {[%emt 0:00:14]} 7. Bc4 {[%emt 0:00:06]} d6 {[%emt 0:00:30]} 8. O-O {[%emt 0:00:17]} Be7 {[%emt 0:00:12]} 9. Qe2 {[%emt 0:00:12]} O-O {[%emt 0:00:17]} 10. Qe4 {[%emt 0:00:06]} dxe5 {[%emt 0:02:14]} 11. dxe5 {[%emt 0:00:13]} Re8 {[%emt 0:05:12]} 12. Rd1 {[%emt 0:04:02]} Qc7 {[%emt 0:03:19]} 13. Bd2 {[%emt 0:13:34]} Bf8 {[%emt 0:11:03]} 14. Nc3 {[%emt 0:20:15]} Nxc3 {[%emt 0:09:18]} 15. Bxc3 {[%emt 0:00:10]} b6 {[%emt 0:07:44]} 16. Ng5 {[%emt 0:03:31]} g6 {[%emt 0:02:20]} 17. Qh4 {[%emt 0:00:25]} Bg7 {[%emt 0:13:54]} 18. Qxh7+ {[%emt 0:07:30]} Kf8 {[%emt 0:00:07]} 19. Bb5 {[%emt 0:06:13]} a5 {[%emt 0:03:05]} 20. Rd3 {[%emt 0:01:25]} Ba6 {[%emt 0:09:38]} 21. Bxa6 {[%emt 0:02:02]} Rxa6 {[%emt 0:00:09]} 22. Nxf7 {[%emt 0:05:50]} Qxf7 {[%emt 0:01:12]} 23. Rf3 {[%emt 0:00:10]} Qxf3 {[%emt 0:00:24]} 24. gxf3 {[%emt 0:00:11]} Kf7 {[%emt 0:00:16]} 25. Qh4 {[%emt 0:00:28]} Ra7 {[%emt 0:01:24]} 26. Rd1 {[%emt 0:04:01]} Ne7 {[%emt 0:06:22]} 27. Qa4 {[%emt 0:06:18]} Nd5 {[%emt 0:01:12]} 28. Bd4 {[%emt 0:01:55]} Rd8 {[%emt 0:08:14]} 29. Qb5 {[%emt 0:04:58]} Rad7 {[%emt 0:02:18]} 30. Be3 {[%emt 0:01:44]} Bxe5 {[%emt 0:01:36]} 31. Bg5 {[%emt 0:00:34]} Bf6 {[%emt 0:01:04]} 32. Bxf6 {[%emt 0:00:24]} Kxf6 {[%emt 0:00:19]} 33. Rd4 {[%emt 0:06:50]} Rc7 {[%emt 0:01:42]} 34. Rc4 {[%emt 0:01:00]} Rdc8 {[%emt 0:01:26]} 35. Rxc7 {[%emt 0:00:34]} Rxc7 {[%emt 0:00:07]} 36. h4 {[%emt 0:02:27]} g5 {[%emt 0:04:42]} 37. hxg5+ {[%emt 0:00:22]} Kxg5 {[%emt 0:00:15]} 38. Qe2 {[%emt 0:01:00]} Kf6 {[%emt 0:01:05]} 39. Qe4 {[%emt 0:00:22]} Rg7+ {[%emt 0:02:03]} 40. Kf1 {[%emt 0:00:22]} Rg5 {[%emt 0:01:12]} 41. Qh4 {[%emt 0:00:45]} Kf5 {[%emt 0:00:32]} 42. Qe4+ {[%emt 0:01:32]} Kf6 {[%emt 0:00:06]} 43. Qd4+ {[%emt 0:00:37]} Kf5 {[%emt 0:00:48]} 44. Ke2 {[%emt 0:01:09]} Rg8 {[%emt 0:01:26]} 45. Kd2 {[%emt 0:02:17]} Rc8 {[%emt 0:01:46]} 46. a3 {[%emt 0:02:37]} Rc7 {[%emt 0:00:40]} 47. Kd3 {[%emt 0:01:25]} Rd7 {[%emt 0:00:41]} 48. Qe4+ {[%emt 0:00:46]} Kf6 {[%emt 0:00:06]} 49. Kc4 {[%emt 0:00:06]} Rc7+ {[%emt 0:01:14]} 50. Kd4 {[%emt 0:02:19]} b5 {[%emt 0:00:35]} 51. Qe5+ {[%emt 0:00:11]} Ke7 {[%emt 0:00:08]} 52. Qg7+ {[%emt 0:00:44]} Kd6 {[%emt 0:00:11]} 53. Qg3+ {[%emt 0:00:07]} Ke7 {[%emt 0:00:04]} 54. Ke5 {[%emt 0:00:09]} Kd7 {[%emt 0:00:47]} 55. Qg6 {[%emt 0:00:32]} Rc6 {[%emt 0:00:13]} 56. Qf7+ {[%emt 0:00:18]} Ne7 {[%emt 0:00:09]} 57. Kf6 {[%emt 0:00:22]} e5+ {[%emt 0:00:20]} 58. Kxe5 {[%emt 0:00:06]} Rc5+ {[%emt 0:00:09]} 59. Kd4 {[%emt 0:00:27]} Rf5 {[%emt 0:00:36]} 60. Qb3 {[%emt 0:00:08]} a4 {[%emt 0:00:39]} 61. Qc2 {[%emt 0:00:42]} Rxf3 {[%emt 0:00:19]} 62. Ke5 {[%emt 0:01:35]} Nc6+ {[%emt 0:01:00]} 63. Kd5 {[%emt 0:00:10]} Ne7+ {[%emt 0:00:30]} 64. Kc5 {[%emt 0:01:06]} Rf5+ {[%emt 0:00:32]} 65. Qxf5+ {[%emt 0:01:03]} Nxf5 {[%emt 0:00:04]} 66. Kxb5 {[%emt 0:00:07]} Kd6 {[%emt 0:00:10]} 67. Kxa4 {[%emt 0:00:06]} Kc5 {[%emt 0:00:06]} 68. Ka5 {[%emt 0:00:12]} Nd4 {[%emt 0:00:32]} 69. b4+ {[%emt 0:00:34]} Kc6 {[%emt 0:00:18]} 70. Ka6 {[%emt 0:00:09]} Kc7 {[%emt 0:01:57]} 71. b5 {[%emt 0:00:10]} Nb3 {[%emt 0:00:25]} 72. Ka7 {[%emt 0:00:46]} Na5 {[%emt 0:00:14]} 73. b6+ {[%emt 0:00:17]} Kc8 {[%emt 0:00:03]} 74. Ka8 {[%emt 0:00:09]} Nb7 {[%emt 0:00:06]} 75. f4 {[%emt 0:00:07]} Nd6 {[%emt 0:00:09]} 76. f5 {[%emt 0:00:07]} 1-0

[Event "Romanian-ch Youth Open U10 2024"]
[Site "Eforie Nord"]
[Date "2024.04.14"]
[Round "4.3"]
[White "Stan, Dante-Alexandru"]
[Black "Mistrekov, Dobrynia"]
[Result "0-1"]
[ECO "E62"]
[WhiteElo "1561"]
[BlackElo "1562"]
[Annotator "NA RC"]
[PlyCount "120"]
[EventDate "2024.04.10"]
[EventType "swiss"]
[EventCountry "ROU"]
[SourceTitle "playchess.com"]
[Source "ChessBase"]
[SourceQuality "1"]
[TimeControl "5400+30"]

1. Nf3 {[%emt 0:00:03]} Nf6 {[%emt 0:00:07]} 2. g3 {[%emt 0:00:06]} g6 {[%emt 0:00:12]} 3. Bg2 {[%emt 0:00:21]} Bg7 {[%emt 0:00:07]} 4. O-O {[%emt 0:00:57]} O-O {[%emt 0:00:21]} 5. d4 {[%emt 0:01:49]} d6 {[%emt 0:00:25]} 6. c4 {[%emt 0:06:13]} c6 {[%emt 0:00:11]} 7. Nc3 {[%emt 0:01:31]} Qa5 {[%emt 0:00:59]} 8. Bd2 {[%emt 0:08:24]} Qb6 {[%emt 0:01:09]} 9. Qb3 {[%emt 0:06:00]} Nbd7 {[%emt 0:01:17]} 10. Bf4 {[%emt 0:04:48]} Qxb3 {[%emt 0:00:18]} 11. axb3 {[%emt 0:00:02]} Re8 {[%emt 0:00:27]} 12. e4 {[%emt 0:08:44]} e5 {[%emt 0:00:39]} 13. dxe5 {[%emt 0:00:38]} dxe5 {[%emt 0:00:14]} 14. Be3 {[%emt 0:00:15]} Ng4 {[%emt 0:00:20]} 15. Rxa7 {[%emt 0:14:23]} Rxa7 {[%emt 0:02:49]} 16. Bxa7 {[%emt 0:00:08]} Bf8 {[%emt 0:01:16]} 17. h3 {[%emt 0:01:18]} Ngf6 {[%emt 0:00:18]} 18. Be3 {[%emt 0:01:08]} Bc5 {[%emt 0:00:47]} 19. Bxc5 {[%emt 0:01:34]} Nxc5 {[%emt 0:02:48]} 20. Nd2 {[%emt 0:00:45]} Rd8 {[%emt 0:00:49]} 21. Rd1 {[%emt 0:03:50]} b5 {[%emt 0:06:25]} 22. b4 {[%emt 0:09:51]} Nd3 {[%emt 0:00:12]} 23. Nf3 {[%emt 0:02:56]} Rd7 {[%emt 0:06:51]} 24. cxb5 {[%emt 0:01:05]} cxb5 {[%emt 0:00:21]} 25. Kf1 {[%emt 0:06:49]} Nxb4 {[%emt 0:00:17]} 26. Rxd7 {[%emt 0:00:08]} Nxd7 {[%emt 0:00:07]} 27. h4 {[%emt 0:01:00]} Nc6 {[%emt 0:01:10]} 28. Bh3 {[%emt 0:00:20]} b4 {[%emt 0:00:27]} 29. Nd5 {[%emt 0:00:18]} Ba6+ {[%emt 0:00:09]} 30. Ke1 {[%emt 0:00:45]} Nc5 {[%emt 0:00:06]} 31. Nd2 {[%emt 0:03:28]} Nd3+ {[%emt 0:00:16]} 32. Kf1 {[%emt 0:00:24]} Nxb2+ {[%emt 0:00:14]} 33. Kg1 {[%emt 0:00:26]} Nc4 {[%emt 0:00:59]} 34. Nb3 {[%emt 0:00:35]} Nd6 {[%emt 0:00:54]} 35. Bd7 {[%emt 0:00:32]} Nd4 {[%emt 0:00:38]} 36. Nxd4 {[%emt 0:00:51]} exd4 {[%emt 0:00:06]} 37. Nxb4 {[%emt 0:00:05]} Bc4 {[%emt 0:00:49]} 38. e5 {[%emt 0:01:02]} Ne4 {[%emt 0:00:24]} 39. Bc6 {[%emt 0:01:35]} Nc3 {[%emt 0:00:15]} 40. Nc2 {[%emt 0:02:09]} d3 {[%emt 0:00:11]} 41. Ne3 {[%emt 0:00:08]} d2 {[%emt 0:00:07]} 42. Bf3 {[%emt 0:00:31]} Bb3 {[%emt 0:00:26]} 43. Kg2 {[%emt 0:00:26]} d1=Q {[%emt 0:00:13]} 44. Nxd1 {[%emt 0:00:24]} Bxd1 {[%emt 0:00:07]} 45. Bxd1 {[%emt 0:00:13]} Nxd1 {[%emt 0:00:10]} 46. f4 {[%emt 0:00:03]} Kf8 {[%emt 0:00:09]} 47. Kf3 {[%emt 0:00:05]} Ke7 {[%emt 0:00:05]} 48. Ke2 {[%emt 0:00:07]} Nc3+ {[%emt 0:00:08]} 49. Kd3 {[%emt 0:00:06]} Nd5 {[%emt 0:00:02]} 50. Ke4 {[%emt 0:00:19]} Ke6 {[%emt 0:00:08]} 51. Kd4 {[%emt 0:00:45]} h5 {[%emt 0:00:11]} 52. Ke4 {[%emt 0:00:06]} Nc3+ {[%emt 0:00:04]} 53. Kd3 {[%emt 0:00:16]} Nd5 {[%emt 0:00:09]} 54. Ke4 {[%emt 0:00:05]} Ne7 {[%emt 0:00:03]} 55. Kf3 {[%emt 0:00:16]} Kf5 {[%emt 0:00:06]} 56. Ke3 {[%emt 0:00:41]} Kg4 {[%emt 0:00:04]} 57. Kf2 {[%emt 0:00:06]} Nd5 {[%emt 0:00:05]} 58. Kg2 {[%emt 0:00:14]} Ne3+ {[%emt 1:20:49]} 59. Kf2 {[%emt 0:00:07]} Nf5 {[%emt 0:00:00]} 60. Kg2 {[%emt 0:00:17]} Nxg3 {[%emt 0:00:00]} 0-1

[Event "Romanian-ch Youth Open U10 2024"]
[Site "Eforie Nord"]
[Date "2024.04.14"]
[Round "4.4"]
[White "Cazacu, Iustin-Nicolas"]
[Black "Dicu, Teodor-Florentin"]
[Result "1-0"]
[ECO "A41"]
[WhiteElo "1857"]
[BlackElo "1426"]
[Annotator "NA RC"]
[PlyCount "61"]
[EventDate "2024.04.10"]
[EventType "swiss"]
[EventCountry "ROU"]
[SourceTitle "playchess.com"]
[Source "ChessBase"]
[SourceQuality "1"]
[TimeControl "5400+30"]

1. Nf3 {[%emt 0:00:05]} g6 {[%emt 0:00:28]} 2. g3 {[%emt 0:00:56]} Bg7 {[%emt 0:00:24]} 3. d4 {[%emt 0:01:49]} d6 {[%emt 0:00:14]} 4. Bg2 {[%emt 0:01:16]} Nd7 {[%emt 0:00:34]} 5. O-O {[%emt 0:04:02]} e5 {[%emt 0:01:46]} 6. dxe5 {[%emt 0:01:49]} dxe5 {[%emt 0:00:16]} 7. c4 {[%emt 0:00:31]} Ne7 {[%emt 0:00:08]} 8. Nc3 {[%emt 0:02:42]} c6 {[%emt 0:01:07]} 9. Qc2 {[%emt 0:00:33]} O-O {[%emt 0:01:31]} 10. b3 {[%emt 0:01:13]} h6 {[%emt 0:03:20]} 11. Bb2 {[%emt 0:01:48]} f5 {[%emt 0:00:43]} 12. e3 {[%emt 0:03:30]} a6 {[%emt 0:03:43]} 13. Rad1 {[%emt 0:02:46]} Qc7 {[%emt 0:00:17]} 14. Ba3 {[%emt 0:01:09]} Rf7 {[%emt 0:01:29]} 15. Bd6 {[%emt 0:01:49]} Qb6 {[%emt 0:02:43]} 16. Na4 {[%emt 0:01:30]} Qa7 {[%emt 0:00:21]} 17. Nh4 {[%emt 0:03:54]} Kh7 {[%emt 0:00:45]} 18. g4 {[%emt 0:01:49]} Bf6 {[%emt 0:03:36]} 19. gxf5 {[%emt 0:21:19]} Bxh4 {[%emt 0:01:24]} 20. fxg6+ {[%emt 0:00:00]} Nxg6 {[%emt 0:00:40]} 21. Be4 {[%emt 0:00:00]} Rg7 {[%emt 0:00:28]} 22. Kh1 {[%emt 0:00:00]} Nf6 {[%emt 0:00:50]} 23. Bxe5 {[%emt 0:00:00]} Nxe4 {[%emt 0:00:56]} 24. Bxg7 {[%emt 0:00:00]} Kxg7 {[%emt 0:00:27]} 25. Qxe4 {[%emt 0:00:00]} b5 {[%emt 0:00:27]} 26. Rg1 {[%emt 0:00:00]} Qf7 {[%emt 0:00:20]} 27. Nb6 {[%emt 0:00:13]} Bb7 {[%emt 0:00:32]} 28. Rd7 {[%emt 0:49:47]} Kh8 {[%emt 0:07:08]} 29. Rxf7 {[%emt 0:00:00]} Rb8 {[%emt 0:00:29]} 30. Qd4+ {[%emt 0:00:00]} Kg8 {[%emt 0:02:06]} 31. Qg7# {[%emt 0:00:00]} 1-0